fUST/lending_fUST_20240721
["ID","MTS","AMOUNT","RATE_DAILY","PERIOD"]
[332766098,1721508658453,-500.0,0.0001452,2]
[332766099,1721508658464,-1296.63,0.0001452,2]
[332766100,1721508658475,-856.09,0.0001452,2]
[332766101,1721508658485,-1379.95,0.0001452,2]
[332766102,1721508658495,-1680.79,0.0001452,2]
[332766103,1721508658505,-539.29,0.0001452,2]
[332766104,1721508658515,-500.0,0.0001452,2]
[332766105,1721508658525,-534.53,0.0001452,2]
[332766106,1721508658534,-500.0,0.0001452,2]
[332766107,1721508658544,-2006.64,0.0001452,2]
[332766108,1721508658555,-500.0,0.0001452,2]
[332766109,1721508658567,-712.22,0.0001452,2]
[332766110,1721508658578,-500.0,0.0001452,2]
[332766111,1721508658589,-1929.81,0.0001452,2]
[332766112,1721508658600,-739.61,0.0001452,2]
[332766113,1721508658612,-831.82,0.0001452,2]
[332766114,1721508658622,-778.32,0.0001452,2]
[332766115,1721508658632,-663.89,0.0001452,2]
[332766116,1721508658643,-500.0,0.0001452,2]
[332766117,1721508658654,-500.0,0.0001452,2]
[332766118,1721508658664,-1019.27,0.0001452,2]
[332766119,1721508658675,-882.84,0.0001452,2]
[332766120,1721508658685,-500.0,0.0001452,2]
[332766121,1721508658695,-958.78,0.0001452,2]
[332766122,1721508658706,-500.0,0.0001452,2]
[332766123,1721508658721,-500.0,0.0001452,2]
[332766124,1721508658731,-504.399664,0.0001452,2]
[332766125,1721508658742,-500.0,0.0001452,2]
[332766126,1721508658751,-560.9,0.0001452,2]
[332766127,1721508658761,-500.0,0.0001452,2]
[332766128,1721508658771,-500.0,0.0001452,2]
[332766129,1721508658781,-600.22657191,0.0001452,2]
[332766130,1721508658792,-660.14,0.0001452,2]
[332766131,1721508658802,-500.0,0.0001452,2]
[332766132,1721508658813,-2154.81,0.0001452,2]
[332766133,1721508658823,-3543.88,0.0001452,2]
[332766134,1721508658833,-391.90915622,0.0001452,2]
[332766135,1721508658843,-500.0,0.0001452,2]
[332766136,1721508658853,-500.0,0.0001452,2]
[332766137,1721508658863,-1454.6,0.0001452,2]
[332766138,1721508658873,-8312.4,0.0001452,2]
[332766139,1721508658883,-894.43,0.0001452,2]
[332766140,1721508658893,-500.0,0.0001452,2]
[332766141,1721508658903,-500.0,0.0001452,2]
[332766142,1721508658913,-1940.23,0.0001452,2]
[332766143,1721508658923,-717.4,0.0001452,2]
[332766144,1721508658933,-570.53,0.0001452,2]
[332766145,1721508658943,-4361.09,0.0001452,2]
[332766146,1721508658954,-500.0,0.0001452,2]
[332766147,1721508658964,-1134.6,0.0001452,2]
[332766148,1721508658974,-500.0,0.0001452,2]
[332766149,1721508658985,-500.0,0.0001452,2]
[332766150,1721508658997,-500.0,0.0001452,2]
[332766151,1721508659007,-746.07,0.0001452,2]
[332766152,1721508659018,-2310.99,0.0001452,2]
[332766153,1721508659030,-2713.02,0.0001452,2]
[332766154,1721508659042,-500.0,0.0001452,2]
[332766155,1721508659053,-3329.56,0.0001452,2]
[332766156,1721508659064,-698.5,0.0001452,2]
[332766157,1721508659074,-1000.15,0.0001452,2]
[332766158,1721508659083,-500.0,0.0001452,2]
[332766159,1721508659093,-500.0,0.0001452,2]
[332766160,1721508659103,-500.0,0.0001452,2]
[332766161,1721508659115,-500.0,0.0001452,2]
[332766162,1721508659125,-500.0,0.0001452,2]
[332766163,1721508659135,-3309.35,0.0001452,2]
[332766164,1721508659146,-500.0,0.0001452,2]
[332766165,1721508659156,-500.0,0.0001452,2]
[332766166,1721508659166,-2195.11,0.0001452,2]
[332766167,1721508659177,-500.0,0.0001452,2]
[332766168,1721508659187,-504.35,0.0001452,2]
[332766169,1721508659199,-254.08393056,0.0001452,2]
[332766170,1721508659210,-500.0,0.0001452,2]
[332766171,1721508659219,-642.05,0.0001452,2]
[332766172,1721508659229,-598.68,0.0001452,2]
[332766173,1721508659239,-500.0,0.0001452,2]
[332766174,1721508659250,-1499.84,0.0001452,2]
[332766175,1721508659260,-500.0,0.0001452,2]
[332766176,1721508659269,-500.0,0.0001452,2]
[332766177,1721508659279,-1719.89,0.0001452,2]
[332766178,1721508659289,-500.0,0.0001452,2]
[332766179,1721508659299,-1108.68,0.0001452,2]
[332766180,1721508659310,-2328.09,0.0001452,2]
[332766181,1721508659320,-910.55,0.0001452,2]
[332766182,1721508659330,-845.78,0.0001452,2]
[332766183,1721508659340,-500.0,0.0001452,2]
[332766184,1721508659350,-612.71,0.0001452,2]
[332766185,1721508659360,-5035.15,0.0001452,2]
[332766186,1721508659371,-624.22,0.0001452,2]
[332766187,1721508659381,-500.0,0.0001452,2]
[332766188,1721508659391,-500.0,0.0001452,2]
[332766189,1721508659402,-539.26,0.0001452,2]
[332766190,1721508659412,-8731.33,0.0001452,2]
[332766191,1721508659422,-500.0,0.0001452,2]
[332766192,1721508659432,-513.99920471,0.0001452,2]
[332766193,1721508659442,-564.28,0.0001452,2]
[332766194,1721508659452,-500.0,0.0001452,2]
[332766195,1721508659462,-3507.24,0.0001452,2]
[332766196,1721508659472,-2691.83,0.0001452,2]
[332766197,1721508659483,-500.0,0.0001452,2]
[332766198,1721508659492,-500.0,0.0001452,2]
[332766199,1721508659502,-6952.2,0.0001452,2]
[332766200,1721508659512,-500.0,0.0001452,2]
[332766201,1721508659522,-575.82,0.0001452,2]
[332766202,1721508659532,-1861.51,0.0001452,2]
[332766203,1721508659542,-2932.91,0.0001452,2]
[332766204,1721508659552,-500.0,0.0001452,2]
[332766205,1721508659562,-500.0,0.0001452,2]
[332766206,1721508659572,-500.0,0.0001452,2]
[332766207,1721508659583,-500.0,0.0001452,2]
[332766208,1721508659595,-500.0,0.0001452,2]
[332766209,1721508659606,-636.8,0.0001452,2]
[332766210,1721508659616,-2044.79,0.0001452,2]
[332766211,1721508659625,-500.0,0.0001452,2]
[332766212,1721508659635,-500.0,0.0001452,2]
[332766213,1721508659648,-500.0,0.0001452,2]
[332766214,1721508659658,-4564.91,0.0001452,2]
[332766215,1721508659668,-902.99,0.0001452,2]
[332766216,1721508659678,-500.0,0.0001452,2]
[332766217,1721508659687,-1150.52,0.0001452,2]
[332766218,1721508659698,-977.51,0.0001452,2]
[332766219,1721508659712,-500.0,0.0001452,2]
[332766220,1721508659723,-573.56,0.0001452,2]
[332766221,1721508659734,-596.72,0.0001452,2]
[332766222,1721508659744,-500.0,0.0001452,2]
[332766223,1721508659754,-500.0,0.0001452,2]
[332766224,1721508659765,-631.89,0.0001452,2]
[332766225,1721508659776,-500.0,0.0001452,2]
[332766226,1721508659787,-500.0,0.0001452,2]
[332766227,1721508659799,-4211.07,0.0001452,2]
[332766228,1721508659809,-10536.47,0.0001452,2]
[332766229,1721508659819,-500.0,0.0001452,2]
[332766230,1721508659830,-1363.05,0.0001452,2]
[332766231,1721508659840,-2383.85,0.0001452,2]
[332766232,1721508660034,-167.06049577,0.0001452,2]
[332766233,1721508660044,-987.34,0.0001452,2]
[332766234,1721508660054,-10171.63,0.0001452,2]
[332766235,1721508660065,-555.64,0.0001452,2]
[332766236,1721508660074,-1403.7,0.0001452,2]
[332766237,1721508660084,-1883.98,0.0001452,2]
[332766238,1721508660093,-500.0,0.0001452,2]
[332766239,1721508660103,-1797.86,0.0001452,2]
[332766240,1721508660113,-500.0,0.0001452,2]
[332766241,1721508660123,-2455.86,0.0001452,2]
[332766242,1721508660132,-2795.92,0.0001452,2]
[332766243,1721508660142,-500.0,0.0001452,2]
[332766244,1721508660151,-500.0,0.0001452,2]
[332766245,1721508660160,-500.0,0.0001452,2]
[332766246,1721508660170,-1080.94,0.0001452,2]
[332766247,1721508660180,-500.0,0.0001452,2]
[332766248,1721508660190,-2876.63,0.0001452,2]
[332766249,1721508660200,-500.0,0.0001452,2]
[332766250,1721508660210,-1248.49,0.0001452,2]
[332766251,1721508660219,-683.23,0.0001452,2]
[332766252,1721508660229,-150.0,0.0001452,2]
[332766253,1721508660239,-1394.74,0.0001452,2]
[332766254,1721508660248,-1053.46,0.0001452,2]
[332766255,1721508660257,-2889.74,0.0001452,2]
[332766256,1721508660266,-711.65,0.0001452,2]
[332766257,1721508660275,-8392.29,0.0001452,2]
[332766258,1721508660285,-2528.23,0.0001452,2]
[332766259,1721508660294,-1128.71,0.0001452,2]
[332766260,1721508660303,-500.0,0.0001452,2]
[332766261,1721508660315,-30602.79,0.0001452,2]
[332766262,1721508660327,-500.0,0.0001452,2]
[332766263,1721508660337,-500.0,0.0001452,2]
[332766264,1721508660346,-826.33,0.0001452,2]
[332766265,1721508660355,-500.0,0.0001452,2]
[332766266,1721508660366,-500.0,0.0001452,2]
[332766267,1721508660375,-500.0,0.0001452,2]
[332766268,1721508660385,-500.0,0.0001452,2]
[332766269,1721508660394,-510.82,0.0001452,2]
[332766270,1721508660404,-1220.21,0.0001452,2]
[332766271,1721508660413,-500.0,0.0001452,2]
[332766272,1721508660422,-500.0,0.0001452,2]
[332766273,1721508660431,-2897.1,0.0001452,2]
[332766274,1721508660441,-813.26,0.0001452,2]
[332766275,1721508660451,-500.0,0.0001452,2]
[332766276,1721508660460,-174.01583718,0.0001452,2]
[332766277,1721508661107,-500.0,0.00013698,2]
[332766278,1721508661116,-503.98,0.00013698,2]
[332766279,1721508661125,-500.0,0.00013972,2]
[332766280,1721508661135,-870.22416282,0.0001452,2]
[332766281,1721508661144,-500.0,0.0001452,2]
[332766282,1721508661153,-2115.68,0.0001452,2]
[332766283,1721508661162,-1522.47,0.0001452,2]
[332766284,1721508661172,-883.66,0.0001452,2]
[332766285,1721508661181,-500.0,0.0001452,2]
[332766286,1721508661190,-1268.18,0.0001452,2]
[332766287,1721508661199,-500.0,0.0001452,2]
[332766288,1721508661208,-590.44,0.0001452,2]
[332766289,1721508661217,-2275.6,0.0001452,2]
[332766290,1721508661226,-500.0,0.0001452,2]
[332766291,1721508661234,-2042.34,0.0001452,2]
[332766292,1721508661244,-2337.86,0.0001452,2]
[332766293,1721508661253,-13679.82,0.0001452,2]
[332766294,1721508661262,-2209.62,0.0001452,2]
[332766295,1721508661272,-500.0,0.0001452,2]
[332766296,1721508661281,-637.53893582,0.0001452,2]
[332766297,1721508661290,-741.83,0.0001452,2]
[332766298,1721508661300,-500.0,0.0001452,2]
[332766299,1721508661309,-500.0,0.0001452,2]
[332766300,1721508661319,-5656.32,0.0001452,2]
[332766301,1721508661328,-1305.16,0.0001452,2]
[332766302,1721508661337,-584.64,0.0001452,2]
[332766303,1721508661347,-500.0,0.0001452,2]
[332766304,1721508661356,-500.0,0.0001452,2]
[332766305,1721508661365,-500.0,0.0001452,2]
[332766306,1721508661375,-500.0,0.0001452,2]
[332766307,1721508661385,-500.0,0.0001452,2]
[332766308,1721508661395,-500.0,0.0001452,2]
[332766309,1721508661404,-500.0,0.0001452,2]
[332766310,1721508661413,-500.0,0.0001452,2]
[332766311,1721508661423,-500.0,0.0001452,2]
[332766312,1721508661433,-306.0,0.00014521,2]
[332766313,1721508661442,-293.8031846,0.00014521,2]
[332766314,1721508661451,-587.6063692,0.00014521,2]
[332766315,1721508661461,-293.8031846,0.00014521,2]
[332766316,1721508661470,-150.0,0.0001463,2]
[332766317,1721508661479,-504.0,0.0001463,2]
[332766318,1721508661488,-1408.0,0.0001463,2]
[332766319,1721508661498,-526.75209491,0.0001469,2]
[332766320,1721508661507,-500.61107229,0.0001469,2]
[332766321,1721508661517,-500.0,0.00014794,2]
[332766322,1721508661526,-500.0,0.00014794,2]
[332766323,1721508661535,-500.0,0.00014794,2]
[332766324,1721508661544,-437.81733439,0.00014794,2]
[332766325,1721508661554,-2066.42,0.00014794,2]
[332766326,1721508661565,-607.91,0.00014794,2]
[332766327,1721508661573,-542.88147523,0.00014794,2]
[332766328,1721508661583,-626.84,0.00014794,2]
[332766329,1721508661592,-1282.57,0.00014794,2]
[332766330,1721508661602,-500.0,0.00014794,2]
[332766331,1721508661611,-500.0,0.00014794,2]
[332766332,1721508661620,-574.73,0.00014794,2]
[332766333,1721508661629,-561.72,0.00014794,2]
[332766334,1721508661638,-500.0,0.00014794,2]
[332766335,1721508661647,-500.0,0.00014794,2]
[332766336,1721508661656,-500.0,0.00014794,2]
[332766337,1721508661666,-1064.01,0.00014794,2]
[332766338,1721508661675,-638.32,0.00014794,2]
[332766339,1721508661685,-500.0,0.00014794,2]
[332766340,1721508661695,-640.31,0.00014794,2]
[332766341,1721508661708,-500.0,0.00014794,2]
[332766342,1721508661717,-500.0,0.00014794,2]
[332766343,1721508661726,-801.47,0.00014794,2]
[332766344,1721508661735,-500.0,0.00014794,2]
[332766345,1721508661745,-500.0,0.00014794,2]
[332766346,1721508661755,-500.0,0.00014794,2]
[332766347,1721508661764,-500.0,0.00014794,2]
[332766348,1721508661774,-500.0,0.00014794,2]
[332766349,1721508661783,-500.0,0.00014794,2]
[332766350,1721508661795,-827.55,0.00014794,2]
[332766351,1721508661805,-500.0,0.00014794,2]
[332766352,1721508661816,-709.52,0.00014794,2]
[332766353,1721508661826,-901.43,0.00014794,2]
[332766354,1721508661835,-757.46,0.00014794,2]
[332766355,1721508661845,-2427.53,0.00014794,2]
[332766356,1721508661854,-500.0,0.00014794,2]
[332766357,1721508661863,-500.0,0.00014794,2]
[332766358,1721508661874,-500.0,0.00014794,2]
[332766359,1721508661884,-500.0,0.00014794,2]
[332766360,1721508661893,-527.43,0.00014794,2]
[332766361,1721508661903,-500.0,0.00014794,2]
[332766362,1721508661913,-500.0,0.00014794,2]
[332766363,1721508661922,-500.0,0.00014794,2]
[332766364,1721508661931,-500.0,0.00014794,2]
[332766365,1721508661940,-815.02,0.00014794,2]
[332766366,1721508661949,-500.0,0.00014794,2]
[332766367,1721508661959,-1495.68,0.00014794,2]
[332766368,1721508661969,-500.0,0.00014794,2]
[332766369,1721508661978,-568.59,0.00014794,2]
[332766370,1721508661987,-2686.8,0.00014794,2]
[332766371,1721508661996,-500.0,0.00014794,2]
[332766372,1721508662006,-2224.67,0.00014794,2]
[332766373,1721508662015,-500.0,0.00014794,2]
[332766374,1721508662024,-500.0,0.00014794,2]
[332766375,1721508662033,-3019.91,0.00014794,2]
[332766376,1721508662043,-1114.92,0.00014794,2]
[332766377,1721508662052,-805.55,0.00014794,2]
[332766378,1721508662063,-503.42,0.00014794,2]
[332766379,1721508662072,-926.66,0.00014794,2]
[332766380,1721508662082,-500.0,0.00014794,2]
[332766381,1721508662091,-500.0,0.00014794,2]
[332766382,1721508662101,-750.01,0.00014794,2]
[332766383,1721508662110,-749.11,0.00014794,2]
[332766384,1721508662120,-977.73,0.00014794,2]
[332766385,1721508662129,-500.0,0.00014794,2]
[332766386,1721508662138,-1075.22,0.00014794,2]
[332766387,1721508662148,-625.8,0.00014794,2]
[332766388,1721508662157,-577.70418545,0.00014794,2]
[332766389,1721508662166,-500.0,0.00014794,2]
[332766390,1721508662176,-500.0,0.00014794,2]
[332766391,1721508662234,-500.0,0.00014794,2]
[332766392,1721508662244,-500.0,0.00014794,2]
[332766393,1721508662254,-500.0,0.00014794,2]
[332766394,1721508662264,-500.0,0.00014794,2]
[332766395,1721508662273,-592.03,0.00014794,2]
[332766396,1721508662282,-500.0,0.00014794,2]
[332766397,1721508662292,-3956.68,0.00014794,2]
[332766398,1721508662301,-500.0,0.00014794,2]
[332766399,1721508662311,-691.92,0.00014794,2]
[332766400,1721508662320,-500.0,0.00014794,2]
[332766401,1721508662329,-545.09,0.00014794,2]
[332766402,1721508662339,-1408.97,0.00014794,2]
[332766403,1721508662348,-1976.48,0.00014794,2]
[332766404,1721508662357,-671.35,0.00014794,2]
[332766405,1721508662367,-381.24464222,0.00014794,2]
[332766406,1721508662376,-500.0,0.00014794,2]
[332766407,1721508662386,-500.0,0.00014794,2]
[332766408,1721508662395,-1775.97,0.00014794,2]
[332766409,1721508662404,-569.81,0.00014794,2]
[332766410,1721508662413,-512.3,0.00014794,2]
[332766411,1721508662423,-1870.22,0.00014794,2]
[332766412,1721508662432,-564.04,0.00014794,2]
[332766413,1721508662442,-1574.83,0.00014794,2]
[332766414,1721508662451,-500.0,0.00014794,2]
[332766415,1721508662460,-500.0,0.00014794,2]
[332766416,1721508662469,-532.72,0.00014794,2]
[332766417,1721508662479,-767.04,0.00014794,2]
[332766418,1721508662488,-500.0,0.00014794,2]
[332766419,1721508662497,-500.0,0.00014794,2]
[332766420,1721508662507,-824.82,0.00014794,2]
[332766421,1721508662516,-500.0,0.00014794,2]
[332766422,1721508662526,-545.09,0.00014794,2]
[332766423,1721508662535,-500.0,0.00014794,2]
[332766424,1721508662545,-630.69,0.00014794,2]
[332766425,1721508662554,-500.0,0.00014794,2]
[332766426,1721508662566,-500.0,0.00014794,2]
[332766427,1721508662576,-1259.4,0.00014794,2]
[332766428,1721508662585,-811.3,0.00014794,2]
[332766429,1721508662598,-859.66,0.00014794,2]
[332766430,1721508662608,-880.13,0.00014794,2]
[332766431,1721508662617,-1845.627948,0.00014794,2]
[332766432,1721508662627,-606.47,0.00014794,2]
[332766433,1721508662636,-2551.02,0.00014794,2]
[332766434,1721508662645,-1845.627948,0.00014794,2]
[332766435,1721508662654,-1271.9,0.00014794,2]
[332766436,1721508662663,-613.32,0.00014794,2]
[332766437,1721508662672,-1694.34,0.00014794,2]
[332766438,1721508662682,-500.0,0.00014794,2]
[332766439,1721508662691,-1673.13,0.00014794,2]
[332766440,1721508662700,-500.0,0.00014794,2]
[332766441,1721508662711,-1967.34,0.00014794,2]
[332766442,1721508662722,-500.0,0.00014794,2]
[332766443,1721508662731,-500.0,0.00014794,2]
[332766444,1721508662740,-500.0,0.00014794,2]
[332766445,1721508662751,-500.0,0.00014794,2]
[332766446,1721508662760,-500.0,0.00014794,2]
[332766447,1721508662769,-1296.63,0.00014794,2]
[332766448,1721508662778,-856.09,0.00014794,2]
[332766449,1721508662789,-1379.95,0.00014794,2]
[332766450,1721508662798,-1680.79,0.00014794,2]
[332766451,1721508662808,-539.29,0.00014794,2]
[332766452,1721508662818,-612.49765031,0.00014794,2]
[332766453,1721508662827,-534.53,0.00014794,2]
[332766454,1721508662836,-500.0,0.00014794,2]
[332766455,1721508662846,-2006.64,0.00014794,2]
[332766456,1721508662855,-500.0,0.00014794,2]
[332766457,1721508662864,-712.22,0.00014794,2]
[332766458,1721508662874,-500.0,0.00014794,2]
[332766459,1721508662883,-1929.81,0.00014794,2]
[332766460,1721508662892,-739.61,0.00014794,2]
[332766461,1721508662902,-831.82,0.00014794,2]
[332766462,1721508662912,-778.32,0.00014794,2]
[332766463,1721508662922,-663.89,0.00014794,2]
[332766464,1721508662931,-500.0,0.00014794,2]
[332766465,1721508662941,-1019.27,0.00014794,2]
[332766466,1721508662951,-882.84,0.00014794,2]
[332766467,1721508662960,-500.0,0.00014794,2]
[332766468,1721508662969,-958.78,0.00014794,2]
[332766469,1721508662979,-500.0,0.00014794,2]
[332766470,1721508662988,-500.0,0.00014794,2]
[332766471,1721508662998,-560.9,0.00014794,2]
[332766472,1721508663007,-500.0,0.00014794,2]
[332766473,1721508663017,-500.0,0.00014794,2]
[332766474,1721508663026,-660.14,0.00014794,2]
[332766475,1721508663036,-500.0,0.00014794,2]
[332766476,1721508663046,-2154.81,0.00014794,2]
[332766477,1721508663055,-3543.88,0.00014794,2]
[332766478,1721508663066,-500.0,0.00014794,2]
[332766479,1721508663076,-500.0,0.00014794,2]
[332766480,1721508663086,-1454.6,0.00014794,2]
[332766481,1721508663095,-8312.4,0.00014794,2]
[332766482,1721508663104,-894.43,0.00014794,2]
[332766483,1721508663114,-500.0,0.00014794,2]
[332766484,1721508663124,-500.0,0.00014794,2]
[332766485,1721508663134,-1940.23,0.00014794,2]
[332766486,1721508663144,-717.4,0.00014794,2]
[332766487,1721508663153,-570.53,0.00014794,2]
[332766488,1721508663163,-4361.09,0.00014794,2]
[332766489,1721508663172,-554.63644339,0.00014794,2]
[332766490,1721508663181,-1134.6,0.00014794,2]
[332766491,1721508663191,-500.0,0.00014794,2]
[332766492,1721508663200,-500.0,0.00014794,2]
[332766493,1721508663209,-500.0,0.00014794,2]
[332766494,1721508663219,-746.07,0.00014794,2]
[332766495,1721508663228,-2310.99,0.00014794,2]
[332766496,1721508663238,-2713.02,0.00014794,2]
[332766497,1721508663248,-3329.56,0.00014794,2]
[332766498,1721508663258,-698.5,0.00014794,2]
[332766499,1721508663268,-1000.15,0.00014794,2]
[332766500,1721508663278,-500.0,0.00014794,2]
[332766501,1721508663287,-500.0,0.00014794,2]
[332766502,1721508663296,-500.0,0.00014794,2]
[332766503,1721508663306,-500.0,0.00014794,2]
[332766504,1721508663316,-3309.35,0.00014794,2]
[332766505,1721508663326,-500.0,0.00014794,2]
[332766506,1721508663335,-2195.11,0.00014794,2]
[332766507,1721508663346,-500.0,0.00014794,2]
[332766508,1721508663355,-504.35,0.00014794,2]
[332766509,1721508663366,-500.0,0.00014794,2]
[332766510,1721508663377,-642.05,0.00014794,2]
[332766511,1721508663387,-598.68,0.00014794,2]
[332766512,1721508663399,-500.0,0.00014794,2]
[332766513,1721508663409,-1499.84,0.00014794,2]
[332766514,1721508663419,-500.0,0.00014794,2]
[332766515,1721508663428,-500.0,0.00014794,2]
[332766516,1721508663437,-1719.89,0.00014794,2]
[332766517,1721508663447,-500.0,0.00014794,2]
[332766518,1721508663457,-1108.68,0.00014794,2]
[332766519,1721508663466,-910.55,0.00014794,2]
[332766520,1721508663477,-845.78,0.00014794,2]
[332766521,1721508663487,-500.0,0.00014794,2]
[332766522,1721508663496,-612.71,0.00014794,2]
[332766523,1721508663506,-5035.15,0.00014794,2]
[332766524,1721508663515,-624.22,0.00014794,2]
[332766525,1721508663525,-500.0,0.00014794,2]
[332766526,1721508663535,-526.46111205,0.00014794,2]
[332766527,1721508663544,-539.26,0.00014794,2]
[332766528,1721508663554,-8731.33,0.00014794,2]
[332766529,1721508663564,-564.28,0.00014794,2]
[332766530,1721508663573,-500.0,0.00014794,2]
[332766531,1721508663582,-3507.24,0.00014794,2]
[332766532,1721508663592,-2691.83,0.00014794,2]
[332766533,1721508663601,-500.0,0.00014794,2]
[332766534,1721508663611,-500.0,0.00014794,2]
[332766535,1721508663620,-6952.2,0.00014794,2]
[332766536,1721508663630,-562.72109421,0.00014794,2]
[332766537,1721508663640,-575.82,0.00014794,2]
[332766538,1721508663650,-1861.51,0.00014794,2]
[332766539,1721508663660,-2932.91,0.00014794,2]
[332766540,1721508663670,-500.0,0.00014794,2]
[332766541,1721508663680,-500.0,0.00014794,2]
[332766542,1721508663690,-500.0,0.00014794,2]
[332766543,1721508663699,-636.8,0.00014794,2]
[332766544,1721508663712,-500.0,0.00014794,2]
[332766545,1721508663723,-2044.79,0.00014794,2]
[332766546,1721508663732,-500.0,0.00014794,2]
[332766547,1721508663743,-4564.91,0.00014794,2]
[332766548,1721508663753,-902.99,0.00014794,2]
[332766549,1721508663763,-500.0,0.00014794,2]
[332766550,1721508663773,-1150.52,0.00014794,2]
[332766551,1721508663784,-977.51,0.00014794,2]
[332766552,1721508663794,-500.0,0.00014794,2]
[332766553,1721508663804,-573.56,0.00014794,2]
[332766554,1721508663814,-596.72,0.00014794,2]
[332766555,1721508663824,-500.0,0.00014794,2]
[332766556,1721508663833,-500.0,0.00014794,2]
[332766557,1721508663842,-500.0,0.00014794,2]
[332766558,1721508663852,-500.0,0.00014794,2]
[332766559,1721508663863,-4211.07,0.00014794,2]
[332766560,1721508663874,-10536.47,0.00014794,2]
[332766561,1721508663884,-631.89,0.00014794,2]
[332766562,1721508663894,-1363.05,0.00014794,2]
[332766563,1721508663904,-2383.85,0.00014794,2]
[332766564,1721508663914,-178.468555,0.00014794,2]
[332766565,1721508663924,-987.34,0.00014794,2]
[332766566,1721508663934,-178.468555,0.00014794,2]
[332766567,1721508663944,-10171.63,0.00014794,2]
[332766568,1721508663954,-555.64,0.00014794,2]
[332766569,1721508663964,-1403.7,0.00014794,2]
[332766570,1721508663974,-1883.98,0.00014794,2]
[332766571,1721508663984,-500.0,0.00014794,2]
[332766572,1721508663994,-1797.86,0.00014794,2]
[332766573,1721508664003,-500.0,0.00014794,2]
[332766574,1721508664014,-2455.86,0.00014794,2]
[332766575,1721508664024,-2795.92,0.00014794,2]
[332766576,1721508664034,-500.0,0.00014794,2]
[332766577,1721508664044,-1080.94,0.00014794,2]
[332766578,1721508664054,-500.0,0.00014794,2]
[332766579,1721508664065,-2876.63,0.00014794,2]
[332766580,1721508664075,-500.0,0.00014794,2]
[332766581,1721508664085,-1248.49,0.00014794,2]
[332766582,1721508664096,-683.23,0.00014794,2]
[332766583,1721508664107,-182.99629275,0.00014794,2]
[332766584,1721508664117,-1153.84613,0.00014794,2]
[332766585,1721508664127,-1394.74,0.00014794,2]
[332766586,1721508664136,-1053.46,0.00014794,2]
[332766587,1721508664147,-2889.74,0.00014794,2]
[332766588,1721508664156,-1153.84613,0.00014794,2]
[332766589,1721508664166,-711.65,0.00014794,2]
[332766590,1721508664176,-8392.29,0.00014794,2]
[332766591,1721508664186,-2528.23,0.00014794,2]
[332766592,1721508664197,-1128.71,0.00014794,2]
[332766593,1721508664207,-500.0,0.00014794,2]
[332766594,1721508664217,-30602.79,0.00014794,2]
[332766595,1721508664227,-500.0,0.00014794,2]
[332766596,1721508664237,-500.0,0.00014794,2]
[332766597,1721508664247,-826.33,0.00014794,2]